Cogmind - Beta 15 @@@ ROGUE MODE // 2025.07.18 @ 20:30:45 Player: Rockstar Result: Destroyed by C-35 Carver with Carbide Saw Performance ------------- Evolutions (6) 3000 Regions Visited (18) 3600 Robots Destroyed (102) 510 Value Destroyed (4861) 4861 Prototype IDs (40) 800 Alien Tech Used (0) 0 Bonus (1777) 1777 TOTAL SCORE: 14548 Bonus ------- High Alert Combat Kills 511 Follower Combat Kills 166 Entered DSFs 500 Aligned with FarCom 300 Met Data Miner 300 Cogmind --------- Core Integrity 0/1150 Matter 259/300 Energy 244/515 System Corruption 4% Temperature Cool (0) Movement Core (750) Ox14 Location -4/Armory Parts ------- > --- POWER (2) -------- Reinforced Deuterium Engine Antimatter Reactor > --- PROPULSION (6) --- (None) > --- UTILITY (8) ------ Advanced Trap Scanner Improved Thermal Defense Suite > --- WEAPON (3) ------- Gatling Laser > --- INVENTORY (5) ---- (None) Peak State ------------ > --- POWER ------------ Neutrino Core Antimatter Reactor > --- PROPULSION ------- VSS Leg Flexi-carbon Leg Myomer Leg Advanced VSS Leg Advanced VSS Leg Advanced VSS Leg > --- UTILITY ---------- Advanced Cooling System Advanced Cooling System Improved Target Analyzer Core Analyzer Advanced Particle Charger Quantum Capacitor Improved Thermal Defense Suite > --- WEAPON ----------- Gatling Laser Dispersion Rifle Great Axe > --- INVENTORY -------- Reinforced Deuterium Engine Antimatter Reactor Advanced Transmission Jammer Gatling Laser [Rating: 115] Favorites ----------- Power Micro Fission Core Engine Reinforced Deuterium Engine Power Core Micro Fission Core Reactor Light Antimatter Reactor Propulsion Flexi-carbon Leg Treads Armored Treads Leg Flexi-carbon Leg Wheel Wheel Hover Unit Improved Gyrokinetic Inverter Flight Unit Improved Flight Unit Utility Small Storage Unit Device Advanced Heat Sink Storage Small Storage Unit Processor Core Analyzer Hackware Hacking Suite Protection Hardened Heavy Armor Plating Weapon Power Maul Energy Gun Dispersion Rifle Energy Cannon Heavy Plasma Cannon Ballistic Gun Assault Rifle Ballistic Cannon Heavy Assault Cannon Launcher Mini Grenade Launcher Impact Weapon Power Maul Slashing Weapon Great Axe Piercing Weapon Spear Special Melee Weapon Improved Datajack Build | -11 -10 -9 -9 -9 -8 -8 -7 -7 -7 -7 -6 -6 -6 -5 -5 -5 -4 -4 ------- Run | Yrd Mat Mat Min Exi Min Mat Fac Low Low Dat Pro Fac DSF Fac Upp Upp Fac Arm Slots Evolved 12 | . . 2 . . . 2 2 . . . . 2 . 2 . . 2 . Power 1 | . . . . . . . . . . . . 1 . . . . . . Propulsion 4 | . . 1 . . . 1 1 . . . . 1 . . . . . . Utility 6 | . . 1 . . . 1 1 . . . . . . 1 . . 2 . Weapon 1 | . . . . . . . . . . . . . . 1 . . . . Parts Attached 150 | 6 8 6 2 4 1 6 5 1 2 . . 8 14 36 7 . 15 29 Power 21 | 1 1 . . . 1 1 1 . . . . . 1 8 1 . 3 3 Engine 8 | 1 1 . . . 1 1 . . . . . . 1 2 . . . 1 Core 9 | . . . . . . . 1 . . . . . . 6 1 . 1 . Reactor 4 | . . . . . . . . . . . . . . . . . 2 2 Propulsion 47 | 2 2 4 . . . 1 1 . . . . 2 5 15 1 . 7 7 Treads 11 | 2 . . . . . . . . . . . . 3 5 . . . 1 Leg 23 | . . . . . . . . . . . . 2 2 7 . . 6 6 Wheel 3 | . . . . . . . . . . . . . . 2 1 . . . Hover 2 | . . . . . . . . . . . . . . 1 . . 1 . Flight 8 | . 2 4 . . . 1 1 . . . . . . . . . . . Utility 51 | 1 3 1 1 2 . 2 2 1 1 . . 4 5 8 2 . 4 14 Device 25 | . 1 . . 1 . . . 1 1 . . 1 3 5 1 . 4 7 Storage 4 | 1 . 1 1 . . . . . . . . . . . 1 . . . Processor 7 | . . . . 1 . . . . . . . 1 1 3 . . . 1 Hackware 5 | . . . . . . . . . . . . . . . . . . 5 Protection 10 | . 2 . . . . 2 2 . . . . 2 1 . . . . 1 Artifact . | . . . . . . . . . . . . . . . . . . . Weapon 31 | 2 2 1 1 2 . 2 1 . 1 . . 2 3 5 3 . 1 5 Energy Gun 7 | . . . . . . . . . . . . 1 . 1 1 . . 4 Energy Cannon 5 | . 1 . . 2 . . . . . . . . . 1 1 . . . Ballistic Gun 8 | 2 1 . 1 . . . . . . . . . 1 1 1 . 1 . Ballistic Cannon 3 | . . . . . . . . . . . . . 1 2 . . . . Launcher 1 | . . 1 . . . . . . . . . . . . . . . . Special Weapon . | . . . . . . . . . . . . . . . . . . . Impact Weapon 4 | . . . . . . 2 . . . . . 1 1 . . . . . Slashing Weapon 1 | . . . . . . . . . . . . . . . . . . 1 Piercing Weapon 1 | . . . . . . . . . 1 . . . . . . . . . Special Melee Weapon 1 | . . . . . . . 1 . . . . . . . . . . . Unidentified Prototypes 6 | . . . . 3 . . . . . . . 1 . 1 . . . 1 Parts Lost 71 | . 1 . . . 2 1 2 . . . 4 . 5 19 9 . 10 18 Power 10 | . . . . . 1 . . . . . . . 2 2 1 . . 4 Propulsion 28 | . . . . . . 1 1 . . . 3 . . 8 4 . 1 10 Utility 17 | . . . . . . . . . . . 1 . 2 5 1 . 6 2 Weapon 16 | . 1 . . . 1 . 1 . . . . . 1 4 3 . 3 2 Highest Loss Streak 8 | . 1 . . . 2 1 2 . . . 3 . 4 4 5 . 5 8 To Critical Strikes 1 | . . . . . . . . . . . . . . . . . 1 . Average Backups 5 | 1 4 5 5 7 7 7 7 8 8 8 8 5 5 6 3 3 4 4 Power 1 | . 1 1 1 1 . . 1 2 2 2 2 . . 1 1 2 2 1 Propulsion . | . . 1 3 3 3 1 . . . . . . 1 . . . . . Utility 1 | . 1 1 1 2 2 3 4 4 4 4 4 1 1 1 . . . 1 Weapon 2 | . 1 . . 1 1 1 1 2 2 2 2 2 2 3 1 1 2 . Tool/Special . | . . . . . . . . . . . . . . . . . . . Unused Backups 35 | . 1 2 . . . 4 5 . . . 1 . . 11 . . 2 9 Power 4 | . 1 . . . . . . . . . 1 . . 2 . . . . Propulsion 2 | . . . . . . . . . . . . . . . . . . 2 Utility 16 | . . 1 . . . 3 3 . . . . . . 4 . . . 5 Weapon 11 | . . 1 . . . 1 1 . . . . . . 5 . . 2 1 Tool/Special 2 | . . . . . . . 1 . . . . . . . . . . 1 Average Slot Usage (%) 83 | . 93 96 100 98 99 99 92 76 76 76 48 44 79 82 79 76 81 87 Engine 3 | . 14 11 11 11 10 9 3 . . . . 3 4 4 . . . . Core 4 | . . . . . . . 3 7 7 7 5 3 4 5 10 11 5 1 Reactor 1 | . . . . . . . . . . . . . . . . . 4 8 Treads 9 | . 25 . . . . . . . . . . . 9 20 . . . . Leg 10 | . . . . . . . . . . . . 7 19 6 14 11 13 29 Flight 5 | . 2 31 33 33 33 36 37 32 30 30 20 3 . . . . . . Device 14 | . 7 . . . . . . 5 6 7 6 2 4 16 23 23 28 16 Storage 5 | . 12 9 11 11 11 9 7 7 7 7 7 6 6 3 3 5 5 3 Processor 4 | . . . . 4 11 . . . . . . 5 7 5 5 5 5 6 Protection 5 | . 2 22 22 17 11 25 30 23 23 23 7 4 8 2 . . . . Energy Gun 1 | . . . . . . . . . . . . 1 2 . 1 . . 5 Energy Cannon 2 | . 7 . . . . . . . . . . . 2 1 5 5 5 3 Ballistic Gun 3 | . 20 16 11 15 12 1 . . . . . . 1 . 2 5 8 . Ballistic Cannon 2 | . . . . . . . . . . . . . 2 4 5 5 . . Impact Weapon 2 | . . . . . . 7 4 . . . . 1 1 4 . . . . Peak Build Rating 115 | 6 9 16 17 34 19 28 33 28 33 27 27 48 63 87 84 68 94 115 Average Rating 63 | 4 7 12 16 18 18 26 28 26 27 27 16 31 57 74 70 68 83 96 On Entrance 32 | . 6 7 16 17 18 19 26 25 27 27 27 7 48 56 79 68 68 69 Naked Turns 20 | . . . . . . . . . . . . . . . . . . 20 Heaviest Build 64 | 12 14 10 13 20 12 19 22 18 18 18 18 31 60 64 50 50 61 59 Greatest Support 172 | 40 40 15 15 15 15 20 23 22 18 18 18 52 88 172 80 40 104 111 Greatest Overweight (x) 5 | . 3 . . 1 . . . . . . . . 1 4 1 1 5 1 Average Overweight (x) . | . . . . . . . . . . . . . . . . 1 1 . Largest Inventory Capacity 8 | 8 8 5 8 8 8 8 8 8 8 8 8 8 8 8 5 5 5 5 Average Capacity 6 | 7 7 5 6 8 8 8 8 8 8 8 8 8 8 6 5 5 5 5 Most Carried 8 | 2 7 5 7 8 8 8 8 8 8 8 8 8 8 8 4 3 5 5 Average Carried 5 | 1 4 4 5 7 7 7 7 8 7 8 7 5 5 6 3 3 4 4 Final Capacity 8 | 8 5 5 8 8 8 8 8 8 8 8 8 8 8 5 5 5 5 5 Final Carried 8 | 2 5 5 7 8 8 7 8 8 8 8 8 3 8 4 3 3 5 . Class Distribution -------------------- 52% | Scavenger-Mutant 20% | Scavenger-Gunner 13% | Mutant 10% | Sprinter Dominant Class ---------------- Mutant | -10/Materials Mutant | -9/Materials Mutant | -9/Mines Mutant | -9/Exiles Mutant | -8/Mines Sprinter | -8/Materials Sprinter | -7/Factory Sprinter | -7/Lower Caves Sprinter | -7/Lower Caves Sprinter | -7/Data Miner Sprinter | -6/Proximity Caves Assassin | -6/Factory Scavenger-Mutant | -6/DSF Scavenger-Mutant | -5/Factory Scavenger-Gunner | -5/Upper Caves Scavenger-Gunner | -5/Upper Caves Scavenger-Gunner | -4/Factory Scavenger-Mutant | -4/Armory Resources | -11 -10 -9 -9 -9 -8 -8 -7 -7 -7 -7 -6 -6 -6 -5 -5 -5 -4 -4 ----------- Run | Yrd Mat Mat Min Exi Min Mat Fac Low Low Dat Pro Fac DSF Fac Upp Upp Fac Arm Matter Collected 3648 | 221 177 . 140 . 37 18 . 310 . . . . 276 1462 338 . 389 280 Remotely 308 | . . . . . . . . . . . . . . . . . 308 . Salvage Created 5650 | . 393 . . . 133 . 33 . . . . . 268 3534 281 . 563 445 Parts 217 | . 29 . . . 8 . . . . . . . 25 106 14 . 22 13 Haulers Intercepted 2 | . 1 . . . . . . . . . . . . 1 . . . . Recyclers Shooed 4 | . . . . . . . . . . . . . . 3 . . 1 . Parts Field Recycled . | . . . . . . . . . . . . . . . . . . . Retrieved Matter . | . . . . . . . . . . . . . . . . . . . Parts Self-Destructed 16 | . . . . . . . . 6 . . . . . . 10 . . . Prevented . | . . . . . . . . . . . . . . . . . . . Kills | -11 -10 -9 -9 -9 -8 -8 -7 -7 -7 -7 -6 -6 -6 -5 -5 -5 -4 -4 ------- Run | Yrd Mat Mat Min Exi Min Mat Fac Low Low Dat Pro Fac DSF Fac Upp Upp Fac Arm Combat Hostiles Destroyed 78 | . 8 . . . 6 . . . . . . . 4 41 6 . 6 7 Guns 17 | . 3 . . . 3 . . . . . . . 2 . 1 . 3 5 Cannons 49 | . 5 . . . . . . . . . . . . 36 5 . 2 1 AOE 5 | . . . . . 3 . . . . . . . . 2 . . . . Classes Destroyed 16 | . 4 . . . . . . . . . . . 4 7 1 . . . Worker 2 | . . . . . . . . . . . . . . 2 . . . . Builder 3 | . . . . . . . . . . . . . . 1 . . 2 . Hauler 2 | . 1 . . . . . . . . . . . . 1 . . . . Recycler 13 | . . . . . . . . . . . . . . 12 . . 1 . Mechanic 1 | . . . . . . . . . . . . . . 1 . . . . Watcher 3 | . 2 . . . . . 1 . . . . . . . . . . . Swarmer 5 | . 2 . . . 3 . . . . . . . . . . . . . Grunt 27 | . 6 . . . 3 . . . . . . . . 14 2 . 2 . Brawler 3 | . . . . . . . . . . . . . . 2 1 . . . Duelist 1 | . . . . . . . . . . . . . . 1 . . . . Sentry 9 | . . . . . . . . . . . . . 1 3 1 . 2 2 Specialist 1 | . . . . . . . . . . . . . 1 . . . . . Hunter 10 | . . . . . . . . . . . . . 1 4 1 . 2 2 Programmer 19 | . . . . . . . . . . . . . . 16 . . . 3 Heavy 2 | . . . . . . . . . . . . . 1 1 . . . . Behemoth 1 | . . . . . . . . . . . . . . . 1 . . . Best Kill Streak 8 | . 3 . . . 6 . 1 . . . . . 3 8 3 . 3 2 Combat Bots Only 6 | . 3 . . . 6 . . . . . . . 3 4 3 . 2 2 Max Kills in Single Turn 2 | . 1 . . . 2 . 1 . . . . . 1 2 1 . 1 1 Gunslinging . | . . . . . . . . . . . . . . . . . . . Exploded 2 | . . . . . 2 . . . . . . . . 1 . . . . Melee . | . . . . . . . . . . . . . . . . . . . Uniques/NPCs Destroyed . | . . . . . . . . . . . . . . . . . . . Combat | -11 -10 -9 -9 -9 -8 -8 -7 -7 -7 -7 -6 -6 -6 -5 -5 -5 -4 -4 -------- Run | Yrd Mat Mat Min Exi Min Mat Fac Low Low Dat Pro Fac DSF Fac Upp Upp Fac Arm Hostile Shots Fired 1192 | . 76 3 . . 34 68 9 4 15 . 49 . 122 351 105 . 77 279 Missed 422 | . 29 . . . 11 41 8 3 5 . 30 . 32 112 40 . 26 85 Hits 770 | . 47 3 . . 23 27 1 1 10 . 19 . 90 239 65 . 51 194 Melee 17 | . . . . . . . . 1 . . . . . 1 . . . 15 Projectile 753 | . 47 3 . . 23 27 1 . 10 . 19 . 90 238 65 . 51 179 Critical Strikes 29 | . 1 . . . . 3 . . . . . . 3 12 . . 3 7 Actively Blocked 14 | . . . . . . 2 . . . . . . . 12 . . . . Part Disruptions 1 | . . . . . . . . . . . . . . 1 . . . . Damage Taken 13750 | . 474 42 . . 252 322 93 . 99 . 265 . 1611 5342 933 . 1262 3055 Core 2118 | . 40 12 . . 56 69 . . 12 . 120 . 98 500 58 . 136 1017 Absorbed by Shields . | . . . . . . . . . . . . . . . . . . . Redirected to Shielding 88 | . . 3 . . 11 44 8 . 2 . 20 . . . . . . . Ignored by Resistances 75 | . . . . . . . . . . . . . . . . . . 75 Core Remaining (%) 81 | 100 84 . . . 83 87 . . . . 81 . 88 . . 44 . . Volleys Fired 342 | . 33 . . . 15 . . . . . . . 27 167 18 . 24 58 Largest 3 | . 2 . . . 2 . . . . . . . 2 3 3 . 3 2 Hottest 202 | . 80 . . . 50 . . . . . . . 140 181 202 . 153 168 Shots Fired 518 | . 66 . . . 28 . . . . . . . 30 213 51 1 67 62 Gun 214 | . 41 . . . 20 . . . . . . . 17 31 5 1 43 56 Cannon 296 | . 25 . . . . . . . . . . . 13 182 46 . 24 6 Launcher 8 | . . . . . 8 . . . . . . . . . . . . . Special . | . . . . . . . . . . . . . . . . . . . Kinetic 292 | . 41 . . . 20 . . . . . . . 14 144 29 1 43 . Thermal 212 | . 25 . . . . . . . . . . . 13 69 19 . 24 62 Explosive 8 | . . . . . 8 . . . . . . . . . . . . . Electromagnetic 6 | . . . . . . . . . . . . . 3 . 3 . . . Robot Hit Streak 16 | . 9 . . . 4 . . . . . . . 4 13 5 4 6 16 Robot Miss Streak 5 | . 3 . . . 5 . . . . . . . 4 5 5 . 3 3 Penetration Max 1 | . . . . . . . . . . . . . . 1 . . . . Secondary Targets 1 | . . . . . 1 . . . . . . . . . . . . . Max Gunslinging Chain 1 | . . . . . 1 . . . . . . . . . . . . . Capacitor 47 | . . . . . . . . . . . . . . . . . . 47 Shots Hit Robots 345 | . 43 . . . 12 . 2 . . . . . 20 154 31 1 37 45 Core Hits 186 | . 17 . . . 13 . 1 . . . . . 8 87 22 . 20 18 Critical Kills 5 | . . . . . . . . . . . . . . 3 . . 1 1 Critical Parts Destroyed 16 | . . . . . . . . . . . . . 3 3 . . 1 9 Critical Strikes 43 | . . . . . . . . . . . . . 4 26 . . 2 11 Meltdown 3 | . . . . . . . . . . . . . . 2 . . 1 . Destroy 13 | . . . . . . . . . . . . . . 1 . . 1 11 Blast 21 | . . . . . . . . . . . . . 1 20 . . . . Smash 6 | . . . . . . . . . . . . . 3 3 . . . . Melee Attacks 31 | . . . . . . 3 3 . . . . . 5 16 . . . 4 Impact 27 | . . . . . . 3 3 . . . . . 5 16 . . . . Slashing 4 | . . . . . . . . . . . . . . . . . . 4 Piercing . | . . . . . . . . . . . . . . . . . . . Sneak Attacks 9 | . . . . . . . . . . . . . . 8 . . . 1 Combat Hostiles . | . . . . . . . . . . . . . . . . . . . Follow-up Attacks . | . . . . . . . . . . . . . . . . . . . Damage Inflicted 13374 | . 672 . . . 400 . 140 . . . . . 645 7842 1044 28 1130 1473 Guns 2654 | . 271 . . . 81 . . . . . . . 187 213 50 28 589 1235 Cannons 8529 | . 401 . . . . . . . . . . . 244 6191 994 . 541 158 Explosions 803 | . . . . . 319 . . . . . . . 56 428 . . . . Melee 1359 | . . . . . . . 140 . . . . . 158 1010 . . . 51 Ramming 29 | . . . . . . . . . . . . . . . . . . 29 Kinetic 6698 | . 271 . . . 81 . . . . . . . 274 4829 626 28 589 . Thermal 4721 | . 401 . . . . . . . . . . . 144 1853 389 . 541 1393 Explosive 469 | . . . . . 319 . . . . . . . . 150 . . . . Electromagnetic 98 | . . . . . . . . . . . . . 69 . 29 . . . Impact 1308 | . . . . . . . 140 . . . . . 158 1010 . . . . Slashing 51 | . . . . . . . . . . . . . . . . . . 51 Piercing . | . . . . . . . . . . . . . . . . . . . Highest Corruption 16 | . . . . . . 2 . . . . . . 4 16 16 16 . 4 Average Corruption 8 | . . . . . . 2 . . . . . . 3 5 16 16 . 2 Corruption Purged . | . . . . . . . . . . . . . . . . . . . Corruption Blocked 8 | . . . . . . . . . . . . . . 8 . . . . Effects 92 | . . . . . . 1 . . . . . . 2 31 45 9 . 4 Message Errors 17 | . . . . . . . . . . . . . . 8 6 3 . . Matter Fused 18 | . . . . . . . . . . . . . . 8 7 2 . 1 Heat Flow Errors 13 | . . . . . . . . . . . . . . 2 11 . . . Energy Discharges 13 | . . . . . . . . . . . . . . 2 9 1 . 1 Parts Rejected 4 | . . . . . . 1 . . . . . . 1 1 . . . 1 Parts Fused 2 | . . . . . . . . . . . . . . . 2 . . . Data Loss (minor) 8 | . . . . . . . . . . . . . 1 1 4 1 . 1 Data Loss (major) 5 | . . . . . . . . . . . . . . 1 3 1 . . Misfires 5 | . . . . . . . . . . . . . . 3 1 1 . . Alerts 1 | . . . . . . . . . . . . . . . 1 . . . Misdirections 2 | . . . . . . . . . . . . . . 2 . . . . Weapon Failures 4 | . . . . . . . . . . . . . . 3 1 . . . Overload Shots . | . . . . . . . . . . . . . . . . . . . Overflow Damage 993 | . . . . . . . . . . . . . 118 867 6 . 2 . Projectiles 283 | . . . . . . . . . . . . . . 275 6 . 2 . Explosions 58 | . . . . . . . . . . . . . . 58 . . . . Melee 652 | . . . . . . . . . . . . . 118 534 . . . . Knockbacks 40 | . . . . . . . . . . . . . 3 34 3 . . . Impact 7 | . . . . . . . . . . . . . 2 5 . . . . Kinetic 30 | . . . . . . . . . . . . . 1 26 3 . . . Secondary 3 | . . . . . . . . . . . . . . 3 . . . . Self-Inflicted Damage 77 | . . . . . . . . . . . . . . 64 . . . 13 Shots 2 | . . . . . . . . . . . . . . 2 . . . . Rammed 7 | . . . . . . . . . . . . . . . . . . 7 Targets Rammed 7 | . . . . . . . . . . . . . . . . . . 7 Kicked . | . . . . . . . . . . . . . . . . . . . Crushed . | . . . . . . . . . . . . . . . . . . . Highest Temperature 347 | . 19 . . . 24 25 6 . . . . . 54 162 213 . 37 347 Average Temperature 49 | . 4 . . . 13 10 3 . . . . . 23 67 57 . 16 76 Received Heat Transfer 2334 | . 171 15 . . 72 81 6 . 6 . 9 . 138 723 195 . 183 735 Siege Activations . | . . . . . . . . . . . . . . . . . . . Martial Activations . | . . . . . . . . . . . . . . . . . . . Shielding Activations . | . . . . . . . . . . . . . . . . . . . Robots Disrupted . | . . . . . . . . . . . . . . . . . . . Combat Hostiles . | . . . . . . . . . . . . . . . . . . . Robots Corrupted 6 | . . . . . . . . . . . . . 2 4 . . . . Combat Hostiles 2 | . . . . . . . . . . . . . 2 . . . . . Parts Fried 14 | . . . . . . . . . . . . . 1 13 . . . . Impact Corruptions 17 | . . . . . . . . . . . . . 4 13 . . . . Robots Melted 5 | . . . . . . . . . . . . . . 3 . . 1 1 Combat Hostiles 5 | . . . . . . . . . . . . . . 3 . . 1 1 Parts Melted 24 | . 1 . . . . . . . . . . . . 12 . . 6 5 Heat Transferred 5915 | . 851 . . . . . . . . . . . 222 1815 420 . 850 1757 Parts Sabotaged 5 | . . . . . . . . . . . . . . . . . . 5 Parts Stolen 1 | . . . . . . . . 1 . . . . . . . . . . Parts Stripped . | . . . . . . . . . . . . . . . . . . . Power Chain Reactions . | . . . . . . . . . . . . . . . . . . . Latent Energy Used 230 | . . . . . . . . . . . . . 230 . . . . . LE Corruption 4 | . . . . . . . . . . . . . 4 . . . . . Alert | -11 -10 -9 -9 -9 -8 -8 -7 -7 -7 -7 -6 -6 -6 -5 -5 -5 -4 -4 ------- Run | Yrd Mat Mat Min Exi Min Mat Fac Low Low Dat Pro Fac DSF Fac Upp Upp Fac Arm Maximum Alert Level 3 | . . . . . . . . . . . . . . 3 . . . . Low Security (%) 76 | 100 100 100 100 . 100 100 100 . . . . 100 100 49 . . 100 100 Level 1 4 | . . . . . . . . . . . . . . 9 . . . . Level 2 13 | . . . . . . . . . . . . . . 29 . . . . Level 3 5 | . . . . . . . . . . . . . . 11 . . . . Level 4 . | . . . . . . . . . . . . . . . . . . . Level 5 . | . . . . . . . . . . . . . . . . . . . High Security . | . . . . . . . . . . . . . . . . . . . Max Security . | . . . . . . . . . . . . . . . . . . . Peak Influence 1037 | . 90 62 16 . 145 172 92 . . . . 9 104 1037 . . 78 67 Initial 78 | . . 36 16 . . 37 77 . . . . 9 . 54 . . 78 1 Average 151 | . 24 51 8 . 105 37 21 . . . . 1 52 296 . . 34 10 Influence Increases 3299 | . 261 26 . . 185 213 41 45 15 . 90 5 154 1597 150 . 208 309 Destroy 0b10 Robot/C 1620 | . 160 . . . 120 . . . . . . . 80 840 120 . 120 180 Destroy 0b10 Robot/NC 120 | . 15 . . . . . 5 . . . . . . 85 . . 15 . Destroy Leader 410 | . 46 . . . 20 . 2 . . . . . 10 202 30 . 40 60 Allied During Kill 12 | . . . . . . . . . . . . . . 2 . . . 10 Successful Hack 73 | . 38 26 . . . . 4 . . . . 5 . . . . . . Disable Machine 195 | . . . . . 15 . 15 . . . . . . 120 . . 15 30 Destroy Structure 299 | . 2 . . . 30 3 . . . . . . 4 228 . . 18 14 Partial Spotted 15 | . . . . . . 15 . . . . . . . . . . . . Lose Combat Pursuer 555 | . . . . . . 195 15 45 15 . 90 . 60 120 . . . 15 Influence Decreases 3299 | . 174 71 42 . 90 136 208 30 30 5 75 20 50 664 909 153 329 313 Entered New Map 786 | . . 51 26 . . 58 95 3 4 5 . 6 . 50 385 53 47 3 Time Decay 1775 | . 164 20 16 . 70 68 47 27 26 . 45 14 . 402 434 100 192 150 Lost Part 610 | . 10 . . . 20 10 . . . . 30 . 50 190 90 . 90 120 Lost Ally 62 | . . . . . . . . . . . . . . 22 . . . 40 Purge Threat 66 | . . . . . . . 66 . . . . . . . . . . . Squads Dispatched 31 | . 2 . . . . 2 2 . . . . . 1 17 . . 2 5 Investigation 3 | . . . . . . . . . . . . . . 3 . . . . Extermination 11 | . . . . . . . 1 . . . . . . 7 . . . 3 Reinforcement 14 | . 2 . . . . 2 1 . . . . . 1 6 . . . 2 Assault 1 | . . . . . . . . . . . . . . 1 . . . . Garrison 2 | . . . . . . . . . . . . . . . . . 2 . Intercept . | . . . . . . . . . . . . . . . . . . . Searches Triggered . | . . . . . . . . . . . . . . . . . . . Data Miner Redirects 3 | . . . . . . . . . . . . . . 3 . . . . Construction Impeded 1 | . . . . . . . . . . . . . . 1 . . . . Haulers Reinforced 2 | . . . . . . . . . . . . . . 2 . . . . Active Scanning Responses . | . . . . . . . . . . . . . . . . . . . Cargo Convoy Interrupts 1 | . . . . . . . . . . . . . . 1 . . . . Stealth | -11 -10 -9 -9 -9 -8 -8 -7 -7 -7 -7 -6 -6 -6 -5 -5 -5 -4 -4 --------- Run | Yrd Mat Mat Min Exi Min Mat Fac Low Low Dat Pro Fac DSF Fac Upp Upp Fac Arm Distress Signals 13 | . 1 1 . . . 2 . . . . . . . 8 . . 1 . Communications Jammed 56 | . . . . . . . . . . . . . . 44 . . . 12 Distress Signals 56 | . . . . . . . . . . . . . . 44 . . . 12 Times Spotted 196 | . 14 7 . . 8 24 2 7 5 . 10 . 13 64 6 . 13 23 Peak Tracking Total 19 | . 4 8 . . 3 19 1 4 4 . 5 . 5 6 4 . 7 9 Tactical Retreats 22 | . . . . . . 3 1 2 1 . 3 . 3 8 . . . 1 Traps | -11 -10 -9 -9 -9 -8 -8 -7 -7 -7 -7 -6 -6 -6 -5 -5 -5 -4 -4 ------- Run | Yrd Mat Mat Min Exi Min Mat Fac Low Low Dat Pro Fac DSF Fac Upp Upp Fac Arm Traps Triggered 10 | . . . . . . 2 2 . . . . . 1 4 . . 1 . Indirectly . | . . . . . . . . . . . . . . . . . . . Trap Hack Attempts . | . . . . . . . . . . . . . . . . . . . Triggered . | . . . . . . . . . . . . . . . . . . . Disarmed . | . . . . . . . . . . . . . . . . . . . Reprogrammed . | . . . . . . . . . . . . . . . . . . . Reused . | . . . . . . . . . . . . . . . . . . . Traps Extracted . | . . . . . . . . . . . . . . . . . . . Installed . | . . . . . . . . . . . . . . . . . . . Triggered . | . . . . . . . . . . . . . . . . . . . Machines | -11 -10 -9 -9 -9 -8 -8 -7 -7 -7 -7 -6 -6 -6 -5 -5 -5 -4 -4 ---------- Run | Yrd Mat Mat Min Exi Min Mat Fac Low Low Dat Pro Fac DSF Fac Upp Upp Fac Arm Machines Disabled 13 | . . . . . 1 . 1 . . . . . . 8 . . 1 2 Max in Single Turn 4 | . . . . . 1 . 1 . . . . . . 4 . . 1 1 Machines Repaired . | . . . . . . . . . . . . . . . . . . . Machines Dismantled . | . . . . . . . . . . . . . . . . . . . Machines Sabotaged . | . . . . . . . . . . . . . . . . . . . Overloaded Fab Kills . | . . . . . . . . . . . . . . . . . . . Hacking | -11 -10 -9 -9 -9 -8 -8 -7 -7 -7 -7 -6 -6 -6 -5 -5 -5 -4 -4 --------- Run | Yrd Mat Mat Min Exi Min Mat Fac Low Low Dat Pro Fac DSF Fac Upp Upp Fac Arm Machines Accessed 22 | . 3 2 . 2 . 1 3 . . 4 . 1 . 3 . . 2 1 Terminals 9 | . 3 2 . . . . 1 . . . . 1 . 1 . . 1 . Fabricators 4 | . . . . . . . 1 . . . . . . 2 . . . 1 Repair Stations . | . . . . . . . . . . . . . . . . . . . Recycling Units . | . . . . . . . . . . . . . . . . . . . Scanalyzers 1 | . . . . . . 1 . . . . . . . . . . . . Garrison Access 2 | . . . . . . . 1 . . . . . . . . . 1 . Total Hacks 80 | . 8 12 . 10 . 1 5 . . 26 . 1 . 8 . . 2 7 Successful 64 | . 5 7 . 10 . 1 3 . . 26 . 1 . 4 . . . 7 Failed 16 | . 3 5 . . . . 2 . . . . . . 4 . . 2 . Catastrophic 2 | . . 1 . . . . . . . . . . . 1 . . . . Database Lockouts . | . . . . . . . . . . . . . . . . . . . Manual 2 | . . . . 1 . . . . . . . . . . . . 1 . Terminals 27 | . 8 12 . . . . 2 . . . . 1 . 3 . . 1 . Fabricators 14 | . . . . . . . 2 . . . . . . 5 . . . 7 Repair Stations . | . . . . . . . . . . . . . . . . . . . Recycling Units . | . . . . . . . . . . . . . . . . . . . Scanalyzers 1 | . . . . . . 1 . . . . . . . . . . . . Garrison Access 2 | . . . . . . . 1 . . . . . . . . . 1 . Terminal Hacks 51 | . 5 7 . 10 . . 1 . . 26 . 1 . 1 . . . . Record 23 | . . 2 . 9 . . . . . 11 . . . 1 . . . . Part Schematic 8 | . . . . . . . . . . 8 . . . . . . . . Robot Schematic 4 | . . . . . . . . . . 4 . . . . . . . . Robot Analysis 2 | . 2 . . . . . . . . . . . . . . . . . Prototype ID Bank 5 | . 1 1 . . . . . . . 3 . . . . . . . . Open DSF 1 | . . . . . . . . . . . . 1 . . . . . . Level Access Points 1 | . . 1 . . . . . . . . . . . . . . . . Branch Access Points 1 | . . 1 . . . . . . . . . . . . . . . . Recycling Unit Index 1 | . . 1 . . . . . . . . . . . . . . . . Unreport Threat 1 | . . . . . . . 1 . . . . . . . . . . . Dispatch Records 1 | . . 1 . . . . . . . . . . . . . . . . Maintenance Status 1 | . 1 . . . . . . . . . . . . . . . . . Hauler Manifests 1 | . 1 . . . . . . . . . . . . . . . . . Proto ID Catalog 1 | . . . . 1 . . . . . . . . . . . . . . Fabricator Hacks 12 | . . . . . . . 2 . . . . . . 3 . . . 7 Network Status 1 | . . . . . . . 1 . . . . . . . . . . . Load Schematic 5 | . . . . . . . . . . . . . . 2 . . . 3 Build 6 | . . . . . . . 1 . . . . . . 1 . . . 4 Repair Station Hacks . | . . . . . . . . . . . . . . . . . . . Recycling Unit Hacks . | . . . . . . . . . . . . . . . . . . . Scanalyzer 1 | . . . . . . 1 . . . . . . . . . . . . Insert Component 1 | . . . . . . 1 . . . . . . . . . . . . Garrison Access Hacks . | . . . . . . . . . . . . . . . . . . . Unauthorized Hacks . | . . . . . . . . . . . . . . . . . . . Terminals . | . . . . . . . . . . . . . . . . . . . Fabricators . | . . . . . . . . . . . . . . . . . . . Repair Stations . | . . . . . . . . . . . . . . . . . . . Recycling Units . | . . . . . . . . . . . . . . . . . . . Scanalyzers . | . . . . . . . . . . . . . . . . . . . Garrison Access . | . . . . . . . . . . . . . . . . . . . Data Cores Recovered . | . . . . . . . . . . . . . . . . . . . Used . | . . . . . . . . . . . . . . . . . . . Hacking Detections 14 | . 3 2 . . . . 3 . . . . . . 3 . . 2 1 Full Trace Events 3 | . . . . . . . . . . . . . . 3 . . . . Feedback Events 1 | . . . . . . . . . . . . . . 1 . . . . Corruption 1 | . . . . . . . . . . . . . . 1 . . . . Feedback Blocked . | . . . . . . . . . . . . . . . . . . . Robot Schematics Acquired 4 | . . . . . . . . . . 4 . . . . . . . . Robots Built 4 | . . . . . . . . . . . . . . 2 . . . 2 Authchips 2 | . . . . . . . . . . . . . . . . . . 2 Time 420 | . . . . . . . . . . . . . . 134 . . . 286 Total Robot Build Rating 18 | . . . . . . . . . . . . . . 8 . . . 10 Part Schematics Acquired 8 | . . . . . . . . . . 8 . . . . . . . . Parts Built 6 | . . . . . . . 2 . . . . . . . . . . 4 Authchips 1 | . . . . . . . . . . . . . . . . . . 1 Time 329 | . . . . . . . 106 . . . . . . . . . . 223 Total Part Build Rating 38 | . . . . . . . 12 . . . . . . . . . . 26 Parts Repaired . | . . . . . . . . . . . . . . . . . . . Time . | . . . . . . . . . . . . . . . . . . . Parts Recycled . | . . . . . . . . . . . . . . . . . . . Recycled Matter . | . . . . . . . . . . . . . . . . . . . Retrieved Matter . | . . . . . . . . . . . . . . . . . . . Retrieved Components . | . . . . . . . . . . . . . . . . . . . Parts Scanalyzed . | . . . . . . . . . . . . . . . . . . . Part Schematics Acquired . | . . . . . . . . . . . . . . . . . . . Parts Damaged . | . . . . . . . . . . . . . . . . . . . Bothacking | -11 -10 -9 -9 -9 -8 -8 -7 -7 -7 -7 -6 -6 -6 -5 -5 -5 -4 -4 ------------ Run | Yrd Mat Mat Min Exi Min Mat Fac Low Low Dat Pro Fac DSF Fac Upp Upp Fac Arm Used RIF Installer . | . . . . . . . . . . . . . . . . . . . Robots Hacked . | . . . . . . . . . . . . . . . . . . . Non-combat . | . . . . . . . . . . . . . . . . . . . Combat . | . . . . . . . . . . . . . . . . . . . Robot Hacks Applied . | . . . . . . . . . . . . . . . . . . . Relay Couplers Released . | . . . . . . . . . . . . . . . . . . . Fabnet Peak Effective % . | . . . . . . . . . . . . . . . . . . . Robots Rewired 4 | . . . . . . . . . . . . . . . . . . 4 Allies Hacked . | . . . . . . . . . . . . . . . . . . . Hacks Repelled . | . . . . . . . . . . . . . . . . . . . Allies | -11 -10 -9 -9 -9 -8 -8 -7 -7 -7 -7 -6 -6 -6 -5 -5 -5 -4 -4 -------- Run | Yrd Mat Mat Min Exi Min Mat Fac Low Low Dat Pro Fac DSF Fac Upp Upp Fac Arm Total Allies 8 | . . . . . . . . . . . . . . 2 . . . 6 Largest Group 4 | . . . . . . . . . . . . . . 2 . . . 4 Highest-Rated Group 192 | . . . . . . . . . . . . . . 80 . . . 192 Highest-Rated Ally 48 | . . . . . . . . . . . . . . 40 . . . 48 Total Orders 2 | . . . . . . . . . . . . . . 1 . . . 1 GUARD 2 | . . . . . . . . . . . . . . 1 . . . 1 Ally Attacks 30 | . . . . . . . . . . . . . . 14 . . . 16 Total Damage 642 | . . . . . . . . . . . . . . 147 . . . 495 Kills 3 | . . . . . . . . . . . . . . 1 . . . 2 Allies Corrupted . | . . . . . . . . . . . . . . . . . . . Allies Melted 3 | . . . . . . . . . . . . . . 1 . . . 2 Intel | -11 -10 -9 -9 -9 -8 -8 -7 -7 -7 -7 -6 -6 -6 -5 -5 -5 -4 -4 ------- Run | Yrd Mat Mat Min Exi Min Mat Fac Low Low Dat Pro Fac DSF Fac Upp Upp Fac Arm Active Infowar (turns) 2510 | . . . . 66 158 3 . . . . . 53 150 1162 . . . 918 Optics 227 | . . . . 66 158 3 . . . . . . . . . . . . Terrain 199 | . . . . . . . . . . . . 53 146 . . . . . Traps 11 | . . . . . . . . . . . . . . . . . . 11 Jamming 2073 | . . . . . . . . . . . . . 4 1162 . . . 907 Robot Analysis Total 2 | . 2 . . . . . . . . . . . . . . . . . Derelict Logs Recovered 6 | . . . 2 . . . . 1 1 . 1 . . . 1 . . . Drone Launches . | . . . . . . . . . . . . . . . . . . . Drone Recoveries . | . . . . . . . . . . . . . . . . . . . Exploration | -11 -10 -9 -9 -9 -8 -8 -7 -7 -7 -7 -6 -6 -6 -5 -5 -5 -4 -4 ------------- Run | Yrd Mat Mat Min Exi Min Mat Fac Low Low Dat Pro Fac DSF Fac Upp Upp Fac Arm Turns Passed 8401 | 54 555 50 50 156 158 150 265 225 96 30 135 128 328 2988 1079 204 502 1248 Spaces Moved 6494 | 31 296 104 126 410 185 383 643 566 312 104 398 117 149 1231 644 108 227 460 Core 33 | 5 2 . . . . . . . . . . . . . . . . 26 Treads 1346 | 26 222 . . . . . . . . . . . 3 1093 . . . 2 Legs 1741 | . . . . . . . . . . . . 66 146 137 644 108 208 432 Wheels 1 | . . . . . . . . . . . . . . 1 . . . . Hover 19 | . . . . . . . . . . . . . . . . . 19 . Flight 3354 | . 72 104 126 410 185 383 643 566 312 104 398 51 . . . . . . Fastest Speed 27 | 50 37 34 34 34 34 31 27 27 29 29 29 40 110 120 120 190 96 50 Average Speed 91 | 142 131 34 34 35 34 31 27 28 29 29 32 81 141 175 156 190 174 101 Slowest Speed 540 | 160 200 37 34 104 34 31 28 29 29 29 40 115 250 260 190 190 540 240 Overloaded Moves . | . . . . . . . . . . . . . . . . . . . Propulsion Burnouts . | . . . . . . . . . . . . . . . . . . . Robots Hopped 10 | . . . . . . 4 2 . 1 . 3 . . . . . . . Potential Cave-ins . | . . . . . . . . . . . . . . . . . . . Cave-ins Triggered . | . . . . . . . . . . . . . . . . . . . Exploration Rate (%) 41 | 4 51 20 42 77 41 44 20 55 55 70 62 2 90 33 80 17 9 16 Regions Visited 18 Branch Regions 10 Pre-discovered Areas 1 | . . . . . . . . . . 1 . . . . . . . . Known Exits Taken 6 | . . 1 . . 1 . 1 1 1 . . 1 . . . . . . Unknown Exits Taken 11 | 1 1 . 1 1 . 1 . . . 1 1 . . 1 1 1 1 . Scrap Searched 8 | . . . 2 . 1 . . 3 1 . . . . . 1 . . . Spaces Dug 7 | . . . . . . 3 . . . . . . . 4 . . . . Terrain Destroyed 231 | . . . . . 37 3 . . . . . . 5 153 20 . 7 6 Melee 5 | . . . . . . 3 . . . . . . . 2 . . . . Projectile 96 | . . . . . . . . . . . . . 5 58 20 . 7 6 AOE 130 | . . . . . 37 . . . . . . . . 93 . . . . Terrain Rammed . | . . . . . . . . . . . . . . . . . . . Walls Destroyed . | . . . . . . . . . . . . . . . . . . . Machines Disabled . | . . . . . . . . . . . . . . . . . . . Actions | -11 -10 -9 -9 -9 -8 -8 -7 -7 -7 -7 -6 -6 -6 -5 -5 -5 -4 -4 --------- Run | Yrd Mat Mat Min Exi Min Mat Fac Low Low Dat Pro Fac DSF Fac Upp Upp Fac Arm Total 8370 | 38 397 119 132 423 250 407 726 630 316 103 401 149 221 1767 686 107 288 1210 Wait 1103 | . 46 . . . 46 . 41 63 . . . 19 6 261 14 . 8 599 Move 6457 | 30 295 103 125 409 184 374 638 565 309 103 392 116 148 1230 643 107 226 460 Hop 9 | . . . . . . 4 2 . 1 . 2 . . . . . . . Pick Up 85 | 2 7 4 2 2 2 7 8 . . . . 2 6 18 3 . 5 17 Fast Attach 98 | 6 6 1 1 3 . 4 1 1 1 . . 3 11 25 2 . 13 20 Attach 59 | . 2 2 . 3 2 4 3 . 2 . 1 7 3 12 5 . . 13 Detach 28 | . . . 1 2 . 2 1 . 2 . 2 1 8 6 . . 1 2 Swap 28 | . 1 3 1 . 1 1 2 . . . . . 2 7 1 . 3 6 Drop 92 | . 7 6 2 4 . 8 9 . 1 . 4 1 5 23 . . 8 14 Fire 342 | . 33 . . . 15 . . . . . . . 27 167 18 . 24 58 Melee 31 | . . . . . . 3 3 . . . . . 5 16 . . . 4 Ram 7 | . . . . . . . . . . . . . . . . . . 7 Kick . | . . . . . . . . . . . . . . . . . . . Crush . | . . . . . . . . . . . . . . . . . . . Escape Stasis 20 | . . . . . . . 18 . . . . . . 2 . . . . Rewire 10 | . . . . . . . . . . . . . . . . . . 10 Trap . | . . . . . . . . . . . . . . . . . . . Miscellaneous 1 | . . . . . . . . 1 . . . . . . . . . . Route ------- -11/Scrapyard -10/Materials -9/Materials (discovered 6 exits: Mat x3 / *Min x2 / Sto) -9/Mines (discovered 3 exits: *Mat x2 / *Exi) -9/Exiles -8/Mines -8/Materials -7/Factory -7/Lower Caves -7/Lower Caves -7/Data Miner -6/Proximity Caves -6/Factory (discovered 2 exits: *Low / DSF) -6/DSF -5/Factory -5/Upper Caves -5/Upper Caves -4/Factory -4/Armory History --------- Turn | Location | Event 28 | -11/Scrapyard | Discovered new exit (range 15) 55 | -11/Scrapyard | Entered Materials 306 | -10/Materials | Build established: Mutant 605 | -10/Materials | Discovered new exit (range 16) 610 | -10/Materials | Entered another Materials area 610 | -9/Materials | Evolved 2 slots: Propulsion x1, Utility x1 615 | -9/Materials | Identified exit to Mines 615 | -9/Materials | Identified exit to Storage 615 | -9/Materials | Identified exit to Materials 660 | -9/Materials | Entered Mines 671 | -9/Mines | Discovered exit to Materials (range 4) 708 | -9/Mines | Deemed a non-threat by the Exiles lab entrance 708 | -9/Mines | Discovered new exit (range 5) 710 | -9/Mines | Entered Exiles 718 | -9/Exiles | Met 8R-AWN 724 | -9/Exiles | Met EX-HEX 741 | -9/Exiles | Met EX-DEC 749 | -9/Exiles | Visited The Gauntlet 769 | -9/Exiles | Met EX-BIN 774 | -9/Exiles | Aligned with FarCom system 775 | -9/Exiles | Given EX-Vault access code 783 | -9/Exiles | Opened EX-Vault 785 | -9/Exiles | Found Prototype Energy Cannon 785 | -9/Exiles | Identified Firepult 787 | -9/Exiles | Found Prototype Energy Cannon 787 | -9/Exiles | Identified Latent Energy Streamer 796 | -9/Exiles | Found Prototype Device 796 | -9/Exiles | Identified Supersonic Drone Bay 814 | -9/Exiles | Warned to stay clear of 0b10 Research branches 863 | -9/Exiles | Discovered new exit (range 11) 866 | -9/Exiles | Left Exiles lab with Latent Energy Streamer 866 | -9/Exiles | Entered Mines 1020 | -8/Mines | Discovered exit to Materials (range 10) 1024 | -8/Mines | Entered Materials 1024 | -8/Materials | Evolved 2 slots: Propulsion x1, Utility x1 1170 | -8/Materials | Discovered new exit (range 16) 1174 | -8/Materials | Entered Factory 1174 | -7/Factory | Evolved 2 slots: Propulsion x1, Utility x1 1175 | -7/Factory | Identified exit to Lower Caves 1331 | -7/Factory | Build established: Sprinter 1347 | -7/Factory | Fabricated Enh. Gauss Cannon? 1439 | -7/Factory | Entered Lower Caves 1439 | -7/Lower Caves | Spotted B-75 Beast 1456 | -7/Lower Caves | Identified exit to Lower Caves 1457 | -7/Lower Caves | Activated DRS Beacon 1664 | -7/Lower Caves | Entered another Lower Caves area 1667 | -7/Lower Caves | Attracted the attention of an 0b10 checkpoint 1667 | -7/Lower Caves | Identified exit to Data Miner 1716 | -7/Lower Caves | Encountered a Warlord checkpoint 1744 | -7/Lower Caves | Entered a destroyed Warlord outpost 1760 | -7/Lower Caves | Entered Data Miner 1760 | -7/Data Miner | Discovered new exit (range 6) 1766 | -7/Data Miner | Met Data Miner 1771 | -7/Data Miner | Learned location of Section 7 (-2) 1771 | -7/Data Miner | Acquired the access code to Warlord's prototype stash 1776 | -7/Data Miner | Received God Mode back door access code from Data Miner 1790 | -7/Data Miner | Entered Proximity Caves 1875 | -6/Proximity Caves | Learned 12 Factory zone layouts 1925 | -6/Proximity Caves | Discovered new exit (range 3) 1925 | -6/Proximity Caves | Entered Factory 1925 | -6/Factory | Evolved 2 slots: Power x1, Propulsion x1 1926 | -6/Factory | Identified exit to Lower Caves 1938 | -6/Factory | Lost 3 parts (2n1u) 2043 | -6/Factory | Identified exit to DSF 2053 | -6/Factory | Entered DSF 2138 | -6/DSF | Additional patrols routed to DSF 2230 | -6/DSF | Lost 4 parts (1p2u1w) 2352 | -6/DSF | Discovered new exit (range 14) 2381 | -6/DSF | Entered Factory 2381 | -5/Factory | Evolved 2 slots: Utility x1, Weapon x1 2537 | -5/Factory | Build established: Scavenger-Mutant 3187 | -5/Factory | Incoming investigation squad redirected 3293 | -5/Factory | Fabricated X-62 Marksman (x2) 4708 | -5/Factory | Lost 3 parts (1p1n1u) 5081 | -5/Factory | First assault squad dispatched 5106 | -5/Factory | Incoming assault squad redirected 5133 | -5/Factory | System corruption reached 10% 5178 | -5/Factory | Cargo convoy interrupted 5203 | -5/Factory | Incoming assault squad redirected 5212 | -5/Factory | Lost 4 parts (1p2n1u) 5326 | -5/Factory | Lost 3 parts (1n2w) 5349 | -5/Factory | Discovered new exit (range 16) 5369 | -5/Factory | Entered Upper Caves 5374 | -5/Upper Caves | Learned Factory emergency access door positions 5402 | -5/Upper Caves | Attracted the attention of an 0b10 checkpoint 5463 | -5/Upper Caves | Spotted B-75 Beast 5489 | -5/Upper Caves | Core integrity fell below 50% 5553 | -5/Upper Caves | Lost 5 parts (1p2n1u1w) 5563 | -5/Upper Caves | Destroyed B-75 Beast 5614 | -5/Upper Caves | Build established: Scavenger-Gunner 5842 | -5/Upper Caves | Lost 3 parts (1n2w) 6266 | -5/Upper Caves | Discovered new exit (range 12) 6311 | -5/Upper Caves | Encountered a Warlord checkpoint 6448 | -5/Upper Caves | Entered another Upper Caves area 6601 | -5/Upper Caves | Encountered a Warlord checkpoint 6616 | -5/Upper Caves | Discovered new exit (range 7) 6652 | -5/Upper Caves | Entered Factory 6652 | -4/Factory | Evolved 2 slots: Utility x2 6988 | -4/Factory | Garrison activated, responded to threat 7141 | -4/Factory | Discovered new exit (range 13) 7154 | -4/Factory | Entered Armory 7168 | -4/Armory | Found Quantum Capacitor 7181 | -4/Armory | Lost 5 parts (3u2w) 7303 | -4/Armory | Fabricated Adv. Transmission Jammer (x2) 7461 | -4/Armory | Build established: Scavenger-Mutant 7520 | -4/Armory | Fabricated Antigrav System (x2) 7742 | -4/Armory | Fabricated E-15 Imp (x2) 8099 | -4/Armory | Lost 7 parts (2p2n2u1w) 8134 | -4/Armory | Lost 3 allies 8369 | -4/Armory | Released all parts (10) 8380 | -4/Armory | Core integrity fell below 50% 8389 | -4/Armory | Core integrity fell below 20% 8395 | -4/Armory | Lost 8 parts (2p5n1w) 8402 | -4/Armory | Destroyed by C-35 Carver with Carbide Saw Last Messages --------------- 08369_ Dispersion Rifle blown off. 08369_ E-15 Imp destroyed. 08369_ Released Wave Gun. 08369_ Released Imp. Medium Armor Plating. 08369_ Released Med. Treads. 08369_ Released Adv. Transmission Jammer. 08369_ Released VSS Leg. 08369_ Released Great Axe. 08369_ Released Core Analyzer. 08369_ Released Imp. Target Analyzer. 08369_ Released Adv. Particle Charger. 08369_ Released Adv. Cooling System. 08384_ Slammed into P-70 Sage. 08387_ Destabilizing: System corrupted (+1). 08388_ Slammed into X-77 Beamer. 08390_ Acquired 3 matter. 08394_ Slammed into X-77 Beamer. 08394_ Gatling Laser broken. 08394_ Destabilizing: Short circuit. 08402_ Slammed into X-77 Beamer. Map ----- +----------------------------------------------------+ | ????????????????????????????????????????????????# | | ????????????????????????????????????????????????# | | ????????????????????????????????????????????????# | | ????????????????????????????????????????????????# | | ????????????????????????????????????????????????# | | ????????????????????????????????????????????????# | | ?????????????????????????##?????????????????????# | | ?????????????????????????# ##################### | | ?????????????????????????? # | | ???????????????????????????? + | | ????????????????????Y?????????# """ # | | ??????????????????????????????# """ # | | ??????????????????????????????# """ !!# | | ??????????????????????????????# !!!# | | ??????????????????????????????# !! # | | ??????????????????????????????# ### "" # | | ??????????????????????????????# "?# "" # | | ???????????????H??????????????# #?# """ # | | ??????????????????????????????# #?# ## | | ?????????????###########?????##% ### #? | | ????????????? ######!/ ## """ """ #? | | ???????????????? + /![%= ## """ """ #? | | ???????????????? # =!!%=!## """ """ #? | | ????????????????????????#Y####[=! ## #? | | ????????????????????????#x#??####### ?? #? | | ????????????????????????#@#????????#+########?+##? | | ????????????????????????#c#??????????????????????? | | ????????????????????????#c#??????????????????????? | | ????????????????????????#p#??????????????????????? | | ????????????????????????#c#??????????????????????? | | ????????????????????????#x#??????????????????????? | | ????????????????????????#p#??????????????????????? | | ?????????????????????####/#####??????????????????? | | ?????????????????????# ! #??????????????????? | | ?????????????????????#""" #??????????????????? | | ?????????????????????#""" #??????????????????? | | ?????????????????????#""" #??????????????????? | | ?????????????????????# #??????????????????? | | ?????????????????????#""" * #??????????????????? | | ?????????????????????#""" #??????????????????? | | ?????????????????????#""" =#??????????????????? | | ?????????????????????# #??????????????????? | | ?????????????????????##########??????????????????? | | ?????????????????????????????????????????????????? | | ?????????????????????????????????????????????????? | | ?????????????????????????????????????????????????? | | ?????????????????????????????????????????????????? | | ?????????????????????????????????????????????????? | | ?????????????????????????????????????????????????? | | ?????????????????????????????????????????????????? | +----------------------------------------------------+ Best States ------------- Heat Dissipation 105 Energy Generation 37 Energy Capacity 735 Matter Stores 300 Matter Capacity 300 Sight Range 18 Terrain Scan Range 16 Terrain Scan Density 110 Jamming Range 16 Corruption Block 8 Armor Coverage 600 Resistance: TH 25 Core Shielding 20 Power Shielding 66 Propulsion Shielding 33 Point Defense Rating 160 Weapon Cycling 15 Evasion (%) 80 Target Analysis 9 Core Analysis 6 Recoil Reduction 6 Particle Charging 25 Kinecelleration 40 Offensive Hacking 10 Authchip Count 4 Item Schematics ----------------- Combat Drone Bay | -7/Data Miner | Free Lgt. Regenerative Plating | -7/Data Miner | Free Cld. Aerolev Unit | -7/Data Miner | Free Thermal Defense Suite | -7/Data Miner | Free Force Rifle | -7/Data Miner | Free Antigrav System | -7/Data Miner | Free Adv. Recoil Stabilizer | -7/Data Miner | Free Imp. Remote Datajack | -7/Data Miner | Free Robot Schematics ------------------ R-10 Processor | -7/Data Miner | Free S-27 Virus | -7/Data Miner | Free E-15 Imp | -7/Data Miner | Free X-62 Marksman | -7/Data Miner | Free Fabricated ------------ Enh. Gauss Cannon | x2 | -7/Factory | Preloaded X-62 Marksman | x2 | -5/Factory Adv. Transmission Jammer | x2 | -4/Armory | Preloaded Antigrav System | x2 | -4/Armory | Authchip E-15 Imp | x2 | -4/Armory | Authchip Repaired ---------- Nothing Alien Tech Used ----------------- None Achievements -------------- Dodgeball, But With Guns Explorer Challenges ------------ None Game ------ Seed CarbideFissionReconstructor Manual? 0 Play Time 02:25:23 Cumulative 91.5 hours Start 2025.07.18 @ 17:01:26 End 2025.07.18 @ 20:30:45 Sessions 1 Manual Loads 0 Difficulty Rogue Special Mode None Game No. 87 Rogue 84 Adventurer 1 Explorer 2 Win Type - Total 0 Types 0/0/0/0/0/0/0/0/0/0 Lore% 31 Gallery% 49 Achievement% 37 Wizard Run 0 Options --------- Layout 0 ASCII 0 Keyboard 0 Movement Mouse Keybinds 0 Fullscreen 2 Font 24/Smallcaps Map View 76x50 Zoom Use 0% Tactical HUD 1 Map Filters NONE Filters NONE Steam 1 RUN: eab686ef-3c7c-4931-9278-6806afadb729